lending/lending_fUSD_20250913
["ID","MTS","AMOUNT","RATE_DAILY","PERIOD"]
[385280867,1757736639681,-150.0,0.00033759,2]
[385280868,1757736639691,-2038.0,0.00033759,2]
[385280869,1757736639700,-1260.0,0.00033759,2]
[385280870,1757736639711,-3388.0,0.00033759,2]
[385280871,1757736639721,-887.0,0.00033759,2]
[385280872,1757736639730,-1579.0,0.00033759,2]
[385280873,1757736639739,-1302.0,0.00033759,2]
[385280874,1757736639749,-568.0,0.00033759,2]
[385280875,1757736639758,-601.0,0.00033759,2]
[385280876,1757736639767,-480.71822206,0.00033759,2]
[385280977,1757736643000,-127.48296979,0.00033759,2]
[385280978,1757736643043,-82.71221603,0.00033759,2]
[385280980,1757736645774,-121.08659212,0.00033759,2]
[385280981,1757736645785,-168.99241816,0.00034,30]
[385280982,1757736645889,-31.00758184,0.00034,30]
[385280983,1757736645898,-164.48,0.00034601,30]
[385280984,1757736645907,-3440.0,0.00034707,2]
[385280985,1757736645916,-635.3140468,0.0003486,2]
[385280986,1757736645928,-1364.6859532,0.0003486,2]
[385280987,1757736645937,-1810.38582671,0.0003486,2]
[385280993,1757736783045,300.0,0.0002739,120]
[385280994,1757736783147,300.0,0.00026149,120]
[385280995,1757736916901,175.9,0.00017226,2]
[385280997,1757737508203,20757.56009266,0.00018,2]
[385280998,1757737508233,1309.33727183,0.00018,2]
[385280999,1757737510972,11548.25202388,0.000154,2]
[385281000,1757737547906,3129.45240508,0.0001995,15]
[385281005,1757737748135,-4845.020628,0.00021,2]
[385281018,1757737832077,-746.90010945,0.00021,2]
[385281027,1757737837667,-1294.82117183,0.00021,2]
[385281028,1757737837677,-2198.0,0.00021,2]
[385281029,1757737837691,-155.36171835,0.00022,15]
[385281030,1757737837700,-216.3488844,0.00022868,2]
[385281031,1757737837710,-76.25812544,0.00022968,2]
[385281032,1757737837749,-99.64187456,0.00022968,2]
[385281033,1757737837758,-62.8979559,0.00024899,2]
[385281034,1757737837904,-205.1020441,0.00024899,2]
[385281035,1757737837913,-269.62945238,0.000249,2]
[385281054,1757737839908,-141.67054762,0.000249,2]
[385281055,1757737839918,-6409.42469856,0.000249,2]
[385281056,1757737839927,-9073.11454411,0.000265,2]
[385281057,1757737839937,-150.66,0.00027397,2]
[385281058,1757737839946,-175.9,0.0002871,2]
[385281059,1757737839957,-190.132,0.00031076,28]
[385281060,1757737839966,-364.13777,0.00031254,2]
[385281061,1757737839975,-160.0,0.0003342,2]
[385281062,1757737839984,-24392.2243723,0.00033451,2]
[385281063,1757737839994,-1579.0,0.00033451,2]
[385281064,1757737840003,-601.0,0.00033451,2]
[385281065,1757737840013,-1302.0,0.00033451,2]
[385281066,1757737840023,-568.0,0.00033451,2]
[385281067,1757737840033,-812.0,0.00033451,2]
[385281068,1757737840043,-897.0,0.00033451,2]
[385281069,1757737840053,-1177.0,0.00033451,2]
[385281070,1757737840062,-3388.0,0.00033451,2]
[385281071,1757737840072,-4168.0,0.00033451,2]
[385281072,1757737840082,-6173.0,0.00033451,2]
[385281073,1757737840092,-2038.0,0.00033451,2]
[385281074,1757737840101,-887.0,0.00033451,2]
[385281075,1757737840111,-277.35679052,0.00033529,2]
[385281076,1757737840121,-200.614671,0.000336,8]
[385281077,1757737840130,-152.0,0.00033826,3]
[385281078,1757737840139,-1610.0,0.00034,2]
[385281079,1757737840148,-150.77,0.0003414,30]
[385281080,1757737840158,-1041.2495126,0.00034163,20]
[385281081,1757737840167,-1055.80190941,0.00034163,20]
[385281082,1757737840177,-1059.86059349,0.00034163,20]
[385281084,1757737840186,-1089.67173776,0.00034163,20]
[385281085,1757737840195,-1064.44331986,0.00034163,20]
[385281086,1757737840206,-1095.9217883,0.00034163,20]
[385281088,1757737840215,-1042.45135561,0.00034163,20]
[385281090,1757737840224,-1404.47818109,0.00034163,20]
[385281091,1757737840233,-666.0,0.00034185,3]
[385281093,1757737840242,-175.9,0.00034452,2]
[385281094,1757737840251,-150.0,0.00034584,7]
[385281096,1757737840261,-1529.97917035,0.00034602,2]
[385281097,1757737840271,-640.25924257,0.00034664,2]
[385281099,1757737840280,-500.0,0.00034732,2]
[385281100,1757737840289,-189.61417329,0.0003486,2]
[385281102,1757737840298,-1000.0,0.0003486,2]
[385281103,1757737840307,-200.0,0.0003486,2]
[385281105,1757737840317,-287.61899177,0.00034898,2]
[385281107,1757737840326,-500.0,0.00034951,7]
[385281108,1757737840335,-500.0,0.00034951,7]
[385281110,1757737840344,-500.0,0.00034951,7]
[385281111,1757737840354,-500.0,0.00034951,7]
[385281113,1757737840363,-500.0,0.00034951,7]
[385281114,1757737840373,-500.0,0.00034951,7]
[385281116,1757737840382,-500.0,0.00034951,7]
[385281118,1757737840391,-217.52949504,0.00034951,7]
[385281119,1757737840400,-500.0,0.00034951,7]
[385281121,1757737840409,-500.0,0.00034951,7]
[385281122,1757737840418,-150.0,0.00034952,2]
[385281124,1757737840428,-930.32,0.00035,2]
[385281126,1757737840437,-547.0,0.00035106,7]
[385281127,1757737840446,-1226.0,0.00035106,7]
[385281129,1757737840456,-152.0,0.00035106,7]
[385281131,1757737840466,-2018.85,0.00035189,2]
[385281132,1757737840476,-1190.97,0.00035189,2]
[385281134,1757737840485,-152.0,0.00035238,7]
[385281136,1757737840494,-1226.0,0.00035238,7]
[385281137,1757737840503,-4436.36,0.00035316,8]
[385281139,1757737840512,-200.0,0.00035331,10]
[385281140,1757737840521,-547.0,0.00035364,7]
[385281142,1757737840530,-152.0,0.00035364,7]
[385281144,1757737840539,-152.0,0.00035364,7]
[385281145,1757737840548,-1226.0,0.00035364,7]
[385281147,1757737840558,-473.93,0.00035389,2]
[385281149,1757737840567,-473.93,0.00035389,2]
[385281150,1757737840576,-168.92539086,0.00035398,7]
[385281152,1757737840586,-821.39093702,0.00035399,2]
[385281153,1757737840594,-132748.34380687,0.00035399,2]
[385281155,1757737840606,-23103.56384,0.00035399,2]
[385281157,1757737840618,-10340.20085,0.00035399,2]
[385281164,1757737840718,-11694.10864341,0.00035399,2]
[385281169,1757737842902,-1311.43459161,0.00035399,2]
[385281174,1757737845727,-259.99276856,0.00033451,2]
[385281251,1757738545502,206.49716702,2.6e-05,30]
[385281252,1757738740528,156.02,0.00017104,2]
[385281253,1757738740630,156.02,0.00018815,2]
[385281277,1757739032161,-156.02,0.00020525,2]
[385281278,1757739032171,-250.0,0.0002138,2]
[385281279,1757739032181,-156.02,0.00022236,2]
[385281280,1757739032190,-250.0,0.00022578,2]
[385281281,1757739032199,-156.02,0.00023946,2]
[385281282,1757739032209,-6205.75401038,0.000249,2]
[385281283,1757739032219,-156.02,0.00025656,2]
[385281284,1757739032228,-156.02,0.00027367,2]
[385281285,1757739032239,-150.66,0.00027397,2]
[385281286,1757739032249,-2483.31766527,0.00028849,2]
[385281287,1757739032258,-156.02,0.00029077,2]
[385281288,1757739032267,-1080.0,0.00030137,120]
[385281289,1757739032276,-156.02,0.00030788,2]
[385281290,1757739032285,-160.0,0.00032269,2]
[385281291,1757739032294,-262.993,0.00032273,32]
[385281292,1757739032303,-212.99211257,0.00032275,2]
[385281293,1757739032312,-160.0,0.00032275,2]
[385281294,1757739032320,-515.60081738,0.00032275,2]
[385281295,1757739032329,-156.02,0.00032498,2]
[385281297,1757739032338,-323.00496264,0.0003356,2]
[385281298,1757739032348,-600.0,0.0003356,2]
[385281299,1757739032357,-151.0,0.0003356,2]
[385281300,1757739032366,-163.20775667,0.0003356,2]
[385281301,1757739032376,-504.46594739,0.0003356,2]
[385281302,1757739032385,-500.0,0.0003356,2]
[385281303,1757739032394,-500.0,0.0003356,2]
[385281305,1757739032403,-500.0,0.0003356,2]
[385281307,1757739032412,-500.0,0.0003356,2]
[385281309,1757739032420,-500.0,0.0003356,2]
[385281311,1757739032430,-500.0,0.0003356,2]
[385281313,1757739032439,-500.0,0.0003356,2]
[385281315,1757739032448,-379.70593815,0.0003356,2]
[385281317,1757739032458,-500.0,0.0003356,2]
[385281319,1757739032467,-500.0,0.0003356,2]
[385281321,1757739032476,-500.0,0.0003356,2]
[385281323,1757739032485,-500.0,0.0003356,2]
[385281326,1757739032495,-564.55042715,0.00033579,2]
[385281328,1757739032504,-887.0,0.0003358,2]
[385281330,1757739032513,-2038.0,0.0003358,2]
[385281332,1757739032523,-3388.0,0.0003358,2]
[385281334,1757739032537,-1260.0,0.0003358,2]
[385281337,1757739032547,-568.0,0.0003358,2]
[385281340,1757739032556,-601.0,0.0003358,2]
[385281343,1757739032565,-1302.0,0.0003358,2]
[385281346,1757739032575,-1579.0,0.0003358,2]
[385281348,1757739032584,-812.0,0.0003358,2]
[385281350,1757739032593,-4168.0,0.0003358,2]
[385281352,1757739032601,-726.0,0.0003358,2]
[385281354,1757739032610,-6173.0,0.0003358,2]
[385281356,1757739032620,-500.0,0.00033667,2]
[385281357,1757739032634,-2920.58267588,0.00033683,2]
[385281358,1757739032646,-500.0,0.00033783,2]
[385281359,1757739032656,-500.0,0.00033783,2]
[385281360,1757739032665,-558.08814873,0.00033783,2]
[385281361,1757739032674,-500.0,0.00033783,2]
[385281362,1757739032683,-500.0,0.00033783,2]
[385281363,1757739032692,-500.0,0.00033783,2]
[385281364,1757739032703,-500.0,0.00033783,2]
[385281365,1757739032712,-413.60466596,0.00033783,2]
[385281366,1757739032722,-501.25370137,0.00033783,2]
[385281367,1757739032731,-277.35679052,0.00033783,2]
[385281368,1757739032741,-153.49497947,0.00033783,2]
[385281369,1757739032751,-200.0,0.00033845,2]
[385281370,1757739032759,-200.0,0.00034,30]
[385281371,1757739032768,-600.0,0.00034108,2]
[385281372,1757739032777,-524.16994389,0.00034108,7]
[385281373,1757739032787,-156.02,0.00034209,2]
[385281374,1757739032796,-168.36,0.00034383,2]
[385281375,1757739032807,-20000.0,0.000344,7]
[385281376,1757739032817,-200.0,0.00034429,2]
[385281377,1757739032828,-165.4,0.00034438,2]
[385281378,1757739032838,-230.86,0.00034448,2]
[385281379,1757739032848,-4694.37,0.00034453,2]
[385281380,1757739032857,-150.77,0.00034453,30]
[385281381,1757739032866,-150.0,0.00034535,7]
[385281382,1757739032875,-308.9,0.00034555,30]
[385281383,1757739032884,-600.0,0.00034656,2]
[385281384,1757739032893,-18628.0,0.00035,14]
[385281385,1757739032902,-4543.7944535,0.00035,3]
[385281386,1757739032912,-168.0,0.00035112,2]
[385281387,1757739032921,-287.61899177,0.00035152,2]
[385281388,1757739032930,-600.0,0.00035204,2]
[385281389,1757739032941,-154.104821,0.00035299,7]
[385281390,1757739032951,-151.0,0.00035299,7]
[385281391,1757739032960,-251.092776,0.00035299,7]
[385281392,1757739032969,-151.0,0.00035299,7]
[385281393,1757739032979,-151.0,0.00035299,7]
[385281394,1757739032988,-158.691709,0.00035299,7]
[385281395,1757739032999,-151.0,0.00035299,7]
[385281396,1757739033008,-156.577676,0.00035299,7]
[385281397,1757739033018,-399.550935,0.00035299,7]
[385281398,1757739033027,-399.550935,0.00035299,7]
[385281399,1757739033037,-151.0,0.00035299,7]
[385281400,1757739033047,-399.550935,0.00035299,7]
[385281401,1757739033057,-399.550935,0.00035299,7]
[385281402,1757739033066,-151.0,0.00035299,7]
[385281403,1757739033076,-151.0,0.00035299,7]
[385281404,1757739033085,-254.586941,0.00035299,7]
[385281405,1757739033094,-151.0,0.00035299,7]
[385281406,1757739033103,-151.0,0.00035299,7]
[385281407,1757739033113,-151.0,0.00035299,7]
[385281408,1757739033122,-151.0,0.00035299,7]
[385281409,1757739033131,-152.532067,0.00035299,7]
[385281410,1757739033140,-167.324245,0.00035299,7]
[385281411,1757739033150,-151.291531,0.00035299,7]
[385281412,1757739033159,-156.846785,0.00035299,7]
[385281413,1757739033168,-180.24666,0.00035299,7]
[385281414,1757739033178,-152.629262,0.00035299,7]
[385281415,1757739033187,-151.0,0.00035299,7]
[385281416,1757739033196,-151.0,0.00035299,7]
[385281417,1757739033205,-152.225708,0.00035299,7]
[385281418,1757739033215,-151.0,0.00035299,7]
[385281419,1757739033224,-151.0,0.00035299,7]
[385281420,1757739033234,-1000.0,0.00035299,2]
[385281421,1757739033243,-3168.8,0.00035316,8]
[385281422,1757739033253,-200.0,0.00035331,10]
[385281423,1757739033262,-1191.32,0.00035342,2]
[385281424,1757739033272,-304.26,0.00035342,2]
[385281425,1757739033281,-542.07,0.00035342,2]
[385281426,1757739033291,-847.40288776,0.00035342,2]
[385281427,1757739033309,-343.91711224,0.00035342,2]
[385281428,1757739033319,-643.7,0.00035342,2]
[385281429,1757739033329,-377.43259259,0.00035343,2]
[385281430,1757739033359,-208.14041438,0.00035343,2]
[385281431,1757739033369,-151.0,0.00035344,7]
[385281432,1757739033379,-151.0,0.00035344,7]
[385281433,1757739033388,-151.0,0.00035344,7]
[385281434,1757739033397,-369.25982554,0.00035373,7]
[385281435,1757739033530,-856.74017446,0.00035373,7]
[385281436,1757739033542,-152.0,0.00035373,7]
[385281437,1757739033553,-163.21,0.00035399,2]
[385281438,1757739033563,-1000.0,0.00035404,2]
[385281439,1757739033573,-1800.0,0.000355,12]
[385281440,1757739033582,-1886.98727557,0.00035514,2]
[385281441,1757739033592,-168.0,0.00035515,2]
[385281442,1757739033601,-3279.0109,0.00035515,2]
[385281443,1757739033611,-5000.0,0.00035516,2]
[385281444,1757739033620,-470.4157,0.00035516,2]
[385281445,1757739033629,-157.90933766,0.00035516,8]
[385281446,1757739033638,-163.59589576,0.00035516,2]
[385281447,1757739033648,-352.30499049,0.00035516,2]
[385281448,1757739033657,-699.44728465,0.00035516,37]
[385281449,1757739033666,-151.0,0.00035516,7]
[385281450,1757739033675,-151.0,0.00035516,7]
[385281451,1757739033685,-796.91637547,0.00035532,2]
[385281452,1757739033694,-151.0,0.0003559,7]
[385281453,1757739033704,-151.0,0.0003559,7]
[385281454,1757739033713,-151.0,0.0003559,7]
[385281455,1757739033723,-399.550935,0.0003559,7]
[385281456,1757739033732,-399.550935,0.0003559,7]
[385281457,1757739033741,-151.0,0.0003559,7]
[385281458,1757739033750,-399.550935,0.0003559,7]
[385281459,1757739033760,-399.550935,0.0003559,7]
[385281460,1757739033769,-3168.8,0.0003559,9]
[385281461,1757739033778,-151.0,0.00035595,7]
[385281462,1757739033789,-150.0,0.000356,24]
[385281463,1757739033799,-24875.58,0.000356,2]
[385281464,1757739033808,-151.0,0.000356,7]
[385281465,1757739033818,-151.0,0.000356,7]
[385281466,1757739033827,-151.0,0.000356,7]
[385281467,1757739033836,-3600.0,0.000356,12]
[385281468,1757739033845,-151.325262,0.000356,7]
[385281469,1757739033855,-213.496194,0.000356,7]
[385281470,1757739033864,-151.0,0.000356,7]
[385281471,1757739033873,-151.0,0.000356,7]
[385281472,1757739033883,-399.550935,0.000356,7]
[385281473,1757739033892,-399.550935,0.000356,7]
[385281474,1757739033902,-399.550935,0.000356,7]
[385281475,1757739033911,-399.550935,0.000356,7]
[385281476,1757739033921,-200.0,0.000356,11]
[385281477,1757739033930,-151.0,0.000356,7]
[385281478,1757739033940,-151.0,0.000356,7]
[385281479,1757739033949,-150.0,0.00035614,2]
[385281480,1757739033958,-150.0,0.00035614,2]
[385281481,1757739033967,-157.29135678,0.00035614,2]
[385281482,1757739033977,-150.0,0.00035614,2]
[385281483,1757739033986,-273.18150614,0.00035614,2]
[385281484,1757739033995,-500.0,0.00035614,2]
[385281485,1757739034004,-150.0,0.00035614,2]
[385281486,1757739034014,-300.0,0.00035614,10]
[385281487,1757739034023,-300.0,0.00035615,10]
[385281488,1757739034033,-758.69358922,0.00035615,2]
[385281489,1757739034043,-26823.63378099,0.00035615,2]
[385281527,1757739040153,-897.0,0.0003358,2]
[385281528,1757739040163,-1065.24893298,0.00035516,2]
[385281529,1757739040175,-1094.78217236,0.00035516,2]
[385281532,1757739043416,-61.9115411,0.00035516,2]
[385281537,1757739045955,-1177.0,0.0003358,2]
[385281538,1757739045964,-2778.05735356,0.00035516,2]
[385281539,1757739045974,-11098.67808739,0.00035615,2]
[385281540,1757739046170,-2375.7850041,0.00035615,2]
[385281735,1757740152252,-300.0,0.00024899,2]
[385281736,1757740152279,-428.55718143,0.000249,2]
[385281737,1757740152302,-151.00000001,0.000249,2]
[385281738,1757740152326,-3965.46922856,0.000249,2]
[385281740,1757740232168,-1459.50761529,0.000249,2]
[385281741,1757740232180,-630.82709603,0.000249,2]
[385281742,1757740232193,-250.0,0.00026149,2]
[385281743,1757740232202,-250.0,0.0002739,2]
[385281744,1757740232212,-150.66,0.00027397,2]
[385281745,1757740232222,-223.85674397,0.00028993,2]
[385281746,1757740232235,-26.14325603,0.00028993,2]
[385281747,1757740232244,-163.1,0.00030868,30]
[385281748,1757740232253,-418.95,0.00030899,2]
[385281749,1757740232263,-921.58213442,0.00030899,2]
[385281750,1757740232273,-200.0,0.00030966,2]
[385281751,1757740232282,-166.0,0.00031,120]
[385281752,1757740232292,-1500.0,0.000311,11]
[385281753,1757740232302,-3100.0,0.000312,11]
[385281754,1757740232311,-4700.0,0.000313,11]
[385281755,1757740232320,-150.0,0.00031349,7]
[385281756,1757740232330,-495.8,0.00031349,2]
[385281757,1757740232340,-2984.30893328,0.000314,11]
[385281758,1757740232361,-1402.00000001,0.000314,11]
[385281759,1757740232372,-1813.69106671,0.000314,11]
[385281760,1757740232382,-7800.0,0.000315,11]
[385281761,1757740232391,-1500.0,0.000316,11]
[385281762,1757740232402,-1500.0,0.000317,11]
[385281763,1757740232411,-4753.2,0.000317,3]
[385281764,1757740232422,-1500.0,0.000318,11]
[385281765,1757740232432,-500.0,0.00031865,2]
[385281766,1757740232442,-260.99740693,0.00031899,2]
[385281767,1757740232452,-260.99740688,0.00031899,2]
[385281768,1757740232461,-260.99740688,0.00031899,2]
[385281769,1757740232471,-260.99740688,0.00031899,2]
[385281770,1757740232480,-260.99740688,0.000319,2]
[385281771,1757740232490,-260.99740688,0.000319,2]
[385281772,1757740232500,-260.99740688,0.000319,2]
[385281773,1757740232509,-16982.88547932,0.000319,2]
[385281774,1757740232518,-261.11636932,0.000319,2]
[385281775,1757740232528,-790.27136929,0.000319,26]
[385281776,1757740232550,-512.80296517,0.000319,26]
[385281811,1757740233272,-2194.16208869,0.000319,26]
[385281812,1757740233282,-1500.0,0.000319,11]
[385281813,1757740233291,-187.54020505,0.000319,6]
[385281814,1757740233301,-260.99740688,0.000319,2]
[385281815,1757740233310,-210.394,0.00031933,30]
[385281816,1757740233320,-161.04,0.00031944,2]
[385281817,1757740233330,-632.0,0.0003196,5]
[385281818,1757740233340,-1144.0,0.00031973,2]
[385281819,1757740233349,-500.0,0.00031973,5]
[385281820,1757740233359,-504.32097928,0.00031973,2]
[385281821,1757740233369,-252.43769606,0.00031973,5]
[385281822,1757740233379,-600.0,0.00031981,2]
[385281823,1757740233388,-500.0,0.00031981,2]
[385281824,1757740233398,-500.0,0.00031981,2]
[385281825,1757740233407,-500.0,0.00031981,2]
[385281826,1757740233416,-500.0,0.00031981,2]
[385281827,1757740233426,-500.0,0.00031981,2]
[385281828,1757740233436,-500.0,0.00031981,2]
[385281829,1757740233449,-500.0,0.00031981,2]
[385281830,1757740233458,-500.0,0.00031981,2]
[385281831,1757740233467,-500.0,0.00031981,2]
[385281832,1757740233477,-500.0,0.00031981,2]
[385281833,1757740233486,-500.0,0.00031981,2]
[385281834,1757740233496,-264.0,0.00031981,2]
[385281835,1757740233506,-10597.8542863,0.0003199,2]
[385281836,1757740233516,-395.93811145,0.0003199,2]
[385281837,1757740233526,-3959.3811145,0.0003199,2]
[385281838,1757740233535,-151.0,0.0003199,7]
[385281839,1757740233545,-151.0,0.0003199,7]
[385281840,1757740233555,-197.83194,0.0003199,7]
[385281841,1757740233565,-151.0,0.0003199,7]
[385281842,1757740233575,-151.0,0.0003199,7]
[385281843,1757740233584,-201.841858,0.0003199,7]
[385281844,1757740233594,-920.366751,0.0003199,7]
[385281845,1757740233604,-920.366751,0.0003199,7]
[385281846,1757740233614,-920.366751,0.0003199,7]
[385281847,1757740233624,-920.366751,0.0003199,7]
[385281848,1757740233634,-151.0,0.0003199,7]
[385281849,1757740233643,-209.98386,0.0003199,7]
[385281850,1757740233653,-151.23,0.0003199,2]
[385281851,1757740233663,-151.23,0.0003199,2]
[385281852,1757740233672,-151.23,0.0003199,2]
[385281853,1757740233681,-151.23,0.0003199,2]
[385281854,1757740233691,-151.23,0.0003199,2]
[385281855,1757740233700,-151.23,0.0003199,2]
[385281856,1757740233709,-151.23,0.0003199,2]
[385281857,1757740234017,-151.23,0.0003199,2]
[385281858,1757740234030,-151.23,0.0003199,2]
[385281859,1757740234040,-151.23,0.0003199,2]
[385281860,1757740234050,-300.0,0.00031999,10]
[385281861,1757740234059,-379.34679461,0.00031999,2]
[385281862,1757740234069,-18747.27420174,0.00031999,2]
[385281863,1757740234081,-13339.06048397,0.00031999,2]
[385281864,1757740234092,-567.61170001,0.00031999,2]
[385281865,1757740238195,-833.443095,0.00031999,2]
[385281866,1757740238265,-4848.40000242,0.00031999,2]
[385281873,1757740240395,-362.66329933,0.00031999,2]
[385281878,1757740243793,-12409.89589668,0.00031999,2]
[385281882,1757740246157,-459.00335516,0.00031899,2]
[385281883,1757740246167,-12471.09991227,0.00031999,2]
[385281885,1757740544308,1870.54759492,0.0002,7]
[385281886,1757740568928,246.36,0.00019732,2]
[385281888,1757741066624,153.37,0.00015373,2]
[385281889,1757741100027,-248.56229674,0.0001998,2]
[385281890,1757741100055,-404.57558138,0.00019999,2]
[385281891,1757741100084,-500.0,0.00019999,2]
[385281892,1757741100112,-500.0,0.00019999,2]
[385281893,1757741100140,-500.0,0.00019999,2]
[385281894,1757741100168,-569.50871901,0.00019999,2]
[385281895,1757741100196,-500.0,0.00019999,2]
[385281896,1757741100228,-500.0,0.00019999,2]
[385281897,1757741100256,-500.0,0.00019999,2]
[385281898,1757741100285,-500.0,0.00019999,2]
[385281899,1757741100312,-500.0,0.00019999,2]
[385281900,1757741100340,-500.0,0.00019999,2]
[385281901,1757741100368,-500.0,0.00019999,2]
[385281902,1757741100610,-500.0,0.00019999,2]
[385281903,1757741100638,-692.35340287,0.0002,7]
[385281904,1757741110693,5849.71133055,0.00030137,120]
[385281908,1757741363447,-15505.88876134,0.0002,7]
[385281909,1757741382023,-43000.0,0.0002,7]
[385281922,1757741432741,-973.21024087,0.0002,7]
[385281923,1757741432751,-153.37,0.0002306,2]
[385281924,1757741432760,-294.95649575,0.00024,2]
[385281925,1757741432770,-298.3588,0.000248,2]
[385281926,1757741432779,-2620.51472251,0.000249,2]
[385281927,1757741432791,-3364.98081355,0.000249,2]
[385281928,1757741432800,-427.28991416,0.00024942,2]
[385281930,1757741432810,-150.66,0.00027397,2]
[385281931,1757741432819,-161.44737827,0.000288,4]
[385281932,1757741432828,-210.14338879,0.000288,4]
[385281933,1757741432838,-152.43988676,0.000288,4]
[385281934,1757741432847,-156.19060195,0.000288,4]
[385281935,1757741432857,-154.42392405,0.000288,4]
[385281936,1757741432866,-150.00000001,0.000288,4]
[385281937,1757741432880,-150.0,0.000288,4]
[385281938,1757741432890,-150.00000001,0.000288,4]
[385281939,1757741432899,-234.05,0.00030623,2]
[385281940,1757741432908,-168.4,0.00030646,2]
[385281941,1757741432918,-250.0,0.00030676,2]
[385281942,1757741432931,-200.0,0.000307,2]
[385281943,1757741432941,-418.95,0.00030725,2]
[385281944,1757741432951,-153.37,0.00030747,2]
[385281945,1757741432960,-163.1,0.00030757,30]
[385281946,1757741432969,-161.07,0.00030771,2]
[385281947,1757741432979,-204.84,0.00030789,2]
[385281948,1757741432990,-3336.6949521,0.00030926,2]
[385281949,1757741433000,-166.0,0.00031,120]
[385281950,1757741433009,-168.315,0.00031076,28]
[385281951,1757741433018,-150.0,0.00031099,7]
[385281952,1757741433028,-700.0,0.000311,11]
[385281953,1757741433037,-1400.0,0.000312,11]
[385281954,1757741433047,-200.0,0.00031287,2]
[385281955,1757741433056,-2100.0,0.000313,11]
[385281956,1757741433066,-2800.0,0.000314,11]
[385281957,1757741433075,-500.0,0.00031426,2]
[385281958,1757741433085,-3600.0,0.000315,11]
[385281959,1757741433094,-700.0,0.000316,11]
[385281960,1757741433103,-193.04,0.00031656,2]
[385281961,1757741433113,-700.0,0.000317,11]
[385281962,1757741433122,-700.0,0.000318,11]
[385281963,1757741433131,-2500.0,0.0003183,7]
[385281964,1757741433140,-2500.0,0.00031838,7]
[385281965,1757741433150,-2500.0,0.00031847,7]
[385281966,1757741433159,-2500.0,0.00031856,7]
[385281967,1757741433169,-2500.0,0.00031865,7]
[385281968,1757741433179,-2500.0,0.00031874,7]
[385281969,1757741433188,-2500.0,0.00031882,7]
[385281970,1757741433198,-2500.0,0.00031891,7]
[385281971,1757741433207,-573.24100008,0.00031899,2]
[385281972,1757741433217,-573.24100004,0.00031899,2]
[385281973,1757741433227,-2500.0,0.000319,7]
[385281974,1757741433236,-590.8497782,0.000319,2]
[385281975,1757741433246,-158.9172173,0.000319,11]
[385281976,1757741433258,-541.0827827,0.000319,11]
[385281977,1757741433268,-201.05220331,0.00031934,2]
[385281978,1757741433277,-500.0,0.00031973,5]
[385281979,1757741433286,-500.0,0.00031973,5]
[385281980,1757741433295,-600.0,0.00031979,2]
[385281981,1757741433305,-500.0,0.00031979,2]
[385281982,1757741433314,-500.0,0.00031979,2]
[385281983,1757741433323,-500.0,0.00031979,2]
[385281984,1757741433332,-500.0,0.00031979,2]
[385281985,1757741433342,-500.0,0.00031979,2]
[385281986,1757741433351,-500.0,0.00031979,2]
[385281987,1757741433360,-500.0,0.00031979,2]
[385281988,1757741433370,-500.0,0.00031979,2]
[385281989,1757741433379,-500.0,0.00031979,2]